bitfinex/quotes_BTCUSD_20250813
["timestamp","ask_amount","ask_price","bid_price","bid_amount"]
[1755088366025,0.001,120390.0,120380.0,0.91652]
[1755088371112,0.001,120390.0,120380.0,0.77788]
[1755088371514,0.001,120390.0,120380.0,1.21852]
[1755088371714,0.001,120390.0,120380.0,1.21848]
[1755088372254,0.001,120390.0,120380.0,1.16028]
[1755088375670,0.001,120390.0,120380.0,1.0568]
[1755088377758,0.001,120390.0,120380.0,0.8578]
[1755088378180,0.02268092,120390.0,120380.0,0.17968]
[1755088378313,0.02791092,120390.0,120380.0,0.158]
[1755088378511,0.02791092,120390.0,120380.0,0.29564]
[1755088379167,0.02791092,120390.0,120380.0,0.63564]
[1755088379540,0.02791092,120390.0,120380.0,0.498]
[1755088379745,0.40964297,120390.0,120380.0,0.29552]
[1755088380178,0.40964297,120390.0,120380.0,0.63552]
[1755088380439,0.40964297,120390.0,120380.0,0.498]
[1755088380656,0.40964297,120390.0,120380.0,0.63052]
[1755088380858,0.02791092,120390.0,120380.0,0.62752]
[1755088381067,0.40964297,120390.0,120380.0,0.63052]
[1755088381281,0.40964297,120390.0,120380.0,0.63252]
[1755088381524,0.40964297,120390.0,120380.0,0.73592]
[1755088381735,0.40964297,120390.0,120380.0,0.93492]
[1755088382564,0.02791092,120390.0,120380.0,0.93492]
[1755088382770,0.49236622,120390.0,120380.0,0.30748]
[1755088382982,0.49236622,120390.0,120380.0,0.44496]
[1755088383206,0.49236622,120390.0,120380.0,0.30748]
[1755088383378,0.11063417,120390.0,120380.0,0.4448]
[1755088383633,0.50981524,120390.0,120380.0,0.33936]
[1755088383881,0.52530621,120390.0,120380.0,0.33936]
[1755088384115,0.52530621,120390.0,120380.0,0.34036]
[1755088384541,0.5253065,120390.0,120380.0,0.20012122]
[1755088384785,0.5253065,120390.0,120380.0,0.33736122]
[1755088385031,0.5253065,120390.0,120380.0,0.33936122]
[1755088385249,0.5253065,120390.0,120380.0,0.20212122]
[1755088385463,0.5253065,120390.0,120380.0,0.00112122]
[1755088385677,0.5263065,120390.0,120380.0,0.13736122]
[1755088385886,0.5273065,120390.0,120380.0,0.13736122]
[1755088386312,0.61650206,120390.0,120380.0,0.00012122]
[1755088386522,0.64140006,120390.0,120380.0,0.13732122]
[1755088386946,0.63256351,120390.0,120380.0,0.13732122]
[1755088387162,0.97256351,120390.0,120380.0,0.13724122]
[1755088387366,0.97256351,120390.0,120380.0,0.00012122]
[1755088387573,0.97256351,120390.0,120380.0,0.13720122]
[1755088389049,0.97056351,120390.0,120380.0,0.13720122]
[1755088389252,0.97256351,120390.0,120380.0,0.13720122]
[1755088389470,0.97456351,120390.0,120380.0,0.13720122]
[1755088390289,0.95909324,120390.0,120380.0,0.13720122]
[1755088390500,0.94164422,120390.0,120380.0,0.13720122]
[1755088390699,0.57736119,120390.0,120380.0,0.13720122]
[1755088390910,0.95909324,120390.0,120380.0,0.13720122]
[1755088391543,0.95909324,120390.0,120380.0,0.43972122]
[1755088392433,0.57736119,120390.0,120380.0,0.30252]
[1755088393510,0.57736119,120390.0,120380.0,0.43952]
[1755088393720,0.95909324,120390.0,120380.0,0.43952]
[1755088394052,0.94164422,120390.0,120380.0,0.43952]
[1755088394266,0.95909324,120390.0,120380.0,0.43952]
[1755088394668,0.90371324,120390.0,120380.0,0.43952]
[1755088394889,0.98619767,120390.0,120380.0,0.43952]
[1755088395243,0.90371324,120390.0,120380.0,0.43952]
[1755088399216,0.90371324,120390.0,120380.0,0.43924]
[1755088403491,0.90371324,120390.0,120380.0,0.30252]
[1755088403695,0.40412994,120380.0,120370.0,2.46651397]
[1755088403940,0.87392524,120380.0,120370.0,2.80207397]
[1755088404361,0.89892524,120380.0,120370.0,2.6462889]
[1755088404518,0.89892524,120380.0,120370.0,2.7828489]
[1755088404519,0.92382724,120380.0,120370.0,2.7828489]
[1755088404719,0.92382724,120380.0,120370.0,2.6462889]
[1755088404915,0.92382724,120380.0,120370.0,2.7828489]
[1755088405139,0.92482724,120380.0,120370.0,2.7828489]
[1755088405422,0.94027909,120380.0,120370.0,2.7828489]
[1755088405547,0.94127909,120380.0,120370.0,2.7828489]
[1755088405951,0.93927909,120380.0,120370.0,2.7828489]
[1755088406191,0.94127909,120380.0,120370.0,2.7828489]
[1755088406726,0.94327909,120380.0,120370.0,2.7828489]
[1755088406940,0.94327909,120380.0,120370.0,2.7197489]
[1755088408539,0.92782724,120380.0,120370.0,2.7197489]
[1755088408731,0.94329785,120380.0,120370.0,2.5831889]
[1755088408977,1.3250299,120380.0,120370.0,2.71142741]
[1755088409180,0.94329785,120380.0,120370.0,2.66173845]
[1755088409587,0.94329785,120380.0,120370.0,2.52521845]
[1755088409786,0.94129785,120380.0,120370.0,2.66153845]
[1755088409962,0.94129785,120380.0,120370.0,2.52521845]
[1755088410169,0.94329785,120380.0,120370.0,2.66149845]
[1755088410588,0.99587694,120380.0,120370.0,2.66149845]
[1755088411461,0.94329785,120380.0,120370.0,2.66149845]
[1755088411899,0.94130498,120380.0,120370.0,2.66149845]
[1755088412545,0.94231027,120380.0,120370.0,2.66149845]
[1755088413211,0.95004889,120380.0,120370.0,2.66149845]
[1755088414253,0.9500456,120380.0,120370.0,2.66149845]
[1755088415002,1.03253003,120380.0,120370.0,2.66149845]
[1755088415632,0.56831355,120380.0,120370.0,2.66149845]
[1755088415836,0.9500456,120380.0,120370.0,2.66149845]
[1755088416560,0.56831355,120380.0,120370.0,2.66117845]
[1755088416766,0.9500456,120380.0,120370.0,2.66117845]
[1755088417002,0.9500456,120380.0,120370.0,2.52521845]
[1755088417207,0.9500456,120380.0,120370.0,2.66117845]
[1755088417448,1.33177765,120380.0,120370.0,2.51762708]
[1755088417649,1.3495749,120380.0,120370.0,2.50727521]
[1755088417851,1.34954035,120380.0,120370.0,2.06505794]
[1755088418322,1.34954035,120380.0,120370.0,2.20097794]
[1755088418493,1.43002478,120380.0,120370.0,2.20097794]
[1755088418926,1.43402478,120380.0,120370.0,2.20097794]
[1755088419331,1.43302478,120380.0,120370.0,2.20097794]
[1755088419695,1.43302478,120380.0,120370.0,2.05700649]
[1755088419896,1.43302478,120380.0,120370.0,2.17563338]
[1755088420098,1.43702478,120380.0,120370.0,2.17563338]
[1755088420294,0.67356068,120380.0,120370.0,2.17563338]
[1755088420544,0.69904472,120380.0,120370.0,2.17563338]
[1755088420747,1.46250882,120380.0,120370.0,2.03975338]
[1755088421060,1.54612846,120380.0,120370.0,1.92535351]
[1755088421403,1.54612846,120380.0,120370.0,1.91141826]
[1755088421603,1.54612846,120380.0,120370.0,1.77569826]
[1755088421805,1.54612846,120380.0,120370.0,1.91133826]
[1755088422022,1.54612846,120380.0,120370.0,1.90303951]
[1755088422227,1.62861289,120380.0,120370.0,1.90299951]
[1755088422924,1.46247234,120380.0,120370.0,1.76739951]
[1755088423174,1.46247234,120380.0,120370.0,1.90291951]
[1755088424202,1.46247234,120380.0,120370.0,1.76739951]
[1755088424406,1.62861289,120380.0,120370.0,1.82566305]
[1755088424745,1.62861289,120380.0,120370.0,1.6818428]
[1755088424952,1.62861289,120380.0,120370.0,1.50025193]
[1755088425161,1.65524838,120380.0,120370.0,1.48367019]
[1755088425416,1.66102664,120380.0,120370.0,1.47584878]
[1755088425624,1.68602664,120380.0,120370.0,1.5738129]
[1755088426892,1.68124838,120380.0,120370.0,1.4384929]
[1755088427113,1.67724838,120380.0,120370.0,1.5737329]
[1755088427645,1.67724838,120380.0,120370.0,1.4384929]
[1755088427851,1.65224838,120380.0,120370.0,1.4384929]
[1755088428054,1.65224838,120380.0,120370.0,1.5736129]
[1755088428266,1.67724838,120380.0,120370.0,1.5736129]
[1755088428470,1.66102435,120380.0,120370.0,1.5736129]
[1755088428671,1.69337724,120380.0,120370.0,1.39074159]
[1755088428898,1.68589552,120380.0,120370.0,0.93251852]
[1755088429100,1.68589552,120380.0,120370.0,0.98174555]
[1755088429874,1.68011955,120380.0,120370.0,0.87822555]
[1755088430035,1.68584928,120380.0,120370.0,0.87822555]
[1755088430238,1.68584928,120380.0,120370.0,0.87810555]
[1755088430641,1.68584914,120380.0,120370.0,0.87810555]
[1755088431842,1.68584914,120380.0,120370.0,0.74314555]
[1755088432099,1.68584914,120380.0,120370.0,0.87810555]
[1755088433272,1.66840462,120380.0,120370.0,0.87810555]
[1755088435162,1.68585364,120380.0,120370.0,0.74314555]
[1755088435366,1.68585364,120380.0,120370.0,0.87782555]
[1755088435778,1.68585364,120380.0,120370.0,0.87778555]
[1755088436216,1.68586277,120380.0,120370.0,0.86948392]
[1755088436626,1.68586277,120380.0,120370.0,0.86118229]
[1755088436842,1.66841375,120380.0,120370.0,0.86118229]
[1755088437064,1.68586277,120380.0,120370.0,0.85288066]
[1755088437398,1.68586277,120380.0,120370.0,0.84441903]
[1755088437842,1.68586277,120380.0,120370.0,0.8361177]
[1755088438398,1.68586277,120380.0,120370.0,0.82781637]
[1755088438823,1.68586277,120380.0,120370.0,0.81951504]
[1755088439030,1.66445394,120380.0,120370.0,0.66677184]
[1755088439233,1.69338237,120380.0,120370.0,0.80113184]
[1755088439429,1.69338237,120380.0,120370.0,0.79283051]
[1755088439622,1.69338833,120380.0,120370.0,0.79283051]
[1755088439850,1.69339067,120380.0,120370.0,0.78452918]
[1755088440211,1.69339067,120380.0,120370.0,0.77622785]
[1755088440644,1.69339067,120380.0,120370.0,0.76792652]
[1755088440986,1.69339067,120380.0,120370.0,0.75962519]
[1755088441394,1.70822114,120380.0,120370.0,0.75132386]
[1755088441802,1.70822114,120380.0,120370.0,0.74302253]
[1755088442019,1.70822114,120380.0,120370.0,0.69838339]
[1755088442266,1.70822114,120380.0,120370.0,0.69008206]
[1755088442684,1.70822114,120380.0,120370.0,0.68178073]
[1755088443090,1.70822114,120380.0,120370.0,0.6734794]
[1755088443296,1.70822114,120380.0,120370.0,0.66565799]
[1755088443518,1.70822114,120380.0,120370.0,0.65735666]
[1755088443802,1.70822114,120380.0,120370.0,0.64905533]
[1755088443962,1.70826086,120380.0,120370.0,0.64905533]
[1755088444165,1.70826086,120380.0,120370.0,0.640754]
[1755088444166,1.68508318,120380.0,120370.0,0.640754]
[1755088444374,1.70827826,120380.0,120370.0,0.506394]
[1755088444583,1.70827826,120380.0,120330.0,0.00197]
[1755088444584,0.42912994,120340.0,120330.0,0.00197]
[1755088444801,0.93457757,120340.0,120330.0,0.335981]
[1755088445065,0.96072484,120340.0,120330.0,0.335981]
[1755088445270,0.98563884,120340.0,120330.0,0.335981]
[1755088445476,0.98563884,120340.0,120330.0,0.335901]
[1755088445680,0.95963884,120340.0,120330.0,0.335901]
[1755088446176,0.96163884,120340.0,120330.0,0.335901]
[1755088446585,0.96363884,120340.0,120330.0,0.335901]
[1755088447301,0.58190679,120340.0,120330.0,0.201941]
[1755088447459,0.96363884,120340.0,120330.0,0.201941]
[1755088447659,0.96363884,120340.0,120330.0,0.335821]
[1755088449048,0.58190679,120340.0,120330.0,0.336101]
[1755088449247,0.96363884,120340.0,120330.0,0.336101]
[1755088450132,0.9636475,120340.0,120330.0,0.336101]
[1755088450366,1.06341031,120340.0,120330.0,0.336101]
[1755088450580,1.07889385,120340.0,120330.0,0.336101]
[1755088451017,1.06652031,120340.0,120330.0,0.336101]
[1755088451246,1.08200313,120340.0,120330.0,0.336101]
[1755088451465,1.08200313,120340.0,120330.0,0.201941]
[1755088452395,1.08200313,120340.0,120330.0,0.335861]
[1755088452611,0.9995187,120340.0,120330.0,0.335861]
[1755088452831,0.99177693,120340.0,120330.0,0.335861]
[1755088453038,0.99951983,120340.0,120330.0,0.335861]
[1755088453425,0.99952324,120340.0,120330.0,0.335861]
[1755088453644,1.07985035,120340.0,120330.0,0.335861]
[1755088453839,1.08180035,120340.0,120330.0,0.201941]
[1755088454080,1.08180035,120340.0,120330.0,0.335861]
[1755088454587,0.42812994,120330.0,120320.0,0.10356]
[1755088454804,0.93361162,120330.0,120320.0,0.30280896]
[1755088455788,0.95852562,120330.0,120320.0,0.43660896]
[1755088456228,0.57779357,120330.0,120320.0,0.43860896]
[1755088456433,0.97000765,120330.0,120320.0,0.43856896]
[1755088458743,0.5882756,120330.0,120320.0,0.43856896]
[1755088458942,0.97000765,120330.0,120320.0,0.43856896]
[1755088459442,0.94677852,120330.0,120320.0,0.43856896]
[1755088459670,0.97001019,120330.0,120320.0,0.43844896]
[1755088460067,0.97312019,120330.0,120320.0,0.43844896]
[1755088460494,0.95532294,120330.0,120320.0,0.43844896]
[1755088460928,0.57048089,120330.0,120320.0,0.30480896]
[1755088461124,0.95221294,120330.0,120320.0,0.43832896]
[1755088461359,0.57048089,120330.0,120320.0,0.43832896]
[1755088461566,0.562737,120330.0,120320.0,0.49570896]
[1755088461775,0.562737,120330.0,120320.0,0.35974896]
[1755088461776,0.537737,120330.0,120320.0,0.35974896]
[1755088461982,0.91946905,120330.0,120320.0,0.49570896]
[1755088464349,0.91946905,120330.0,120320.0,0.49562896]
[1755088465199,0.91947178,120330.0,120320.0,0.35974896]
[1755088465396,0.91947178,120330.0,120320.0,0.49562896]
[1755088465552,0.90202276,120330.0,120320.0,0.49562896]
[1755088466287,0.91947178,120330.0,120320.0,0.49538896]
[1755088467418,0.53773973,120330.0,120320.0,0.49538896]
[1755088467669,0.91947178,120330.0,120320.0,0.49538896]
[1755088468226,0.53727809,120330.0,120320.0,0.49538896]
[1755088468654,0.53728001,120330.0,120320.0,0.49538896]
[1755088468855,0.91901206,120330.0,120320.0,0.49538896]
[1755088469458,0.53728001,120330.0,120320.0,0.49538896]
[1755088470277,0.52679798,120330.0,120320.0,0.49538896]
[1755088470515,0.16934896,120330.0,120320.0,0.35974896]
[1755088470744,0.15385653,120330.0,120320.0,0.35974896]
[1755088471001,0.15385653,120330.0,120320.0,0.49606896]
[1755088471180,0.15385653,120330.0,120320.0,0.35974896]
[1755088471440,0.15385653,120330.0,120320.0,0.49606896]
[1755088471649,0.15905014,120330.0,120320.0,0.49606896]
[1755088471887,0.15905014,120330.0,120320.0,0.49706896]
[1755088472119,0.10440417,120330.0,120320.0,0.49702896]
[1755088472539,0.10340417,120330.0,120320.0,0.35874896]
[1755088472723,0.10340417,120330.0,120320.0,0.49694896]
[1755088473101,0.10340417,120330.0,120320.0,0.49494896]
[1755088473506,0.10440417,120330.0,120320.0,0.49794896]
[1755088473702,0.10440417,120330.0,120320.0,0.49994896]
[1755088475756,0.10440417,120330.0,120320.0,0.39638896]
[1755088477728,0.10440417,120330.0,120320.0,0.39694896]
[1755088478459,0.10440417,120330.0,120320.0,0.19774896]
[1755088481616,0.10440417,120330.0,120320.0,0.50046896]
[1755088482861,0.10440417,120330.0,120320.0,0.36370896]
[1755088483064,0.10440417,120330.0,120320.0,0.50014896]
[1755088483304,0.10440417,120330.0,120320.0,0.39658896]
[1755088483504,0.10440417,120330.0,120320.0,0.39654896]
[1755088484506,0.10440417,120330.0,120320.0,0.26014896]
[1755088484693,0.10440417,120330.0,120320.0,0.19734896]
[1755088486301,0.10440417,120330.0,120320.0,0.21098896]
[1755088486529,0.10440417,120330.0,120320.0,0.34710896]
[1755088487311,0.10340417,120330.0,120320.0,0.34310896]
[1755088487737,0.10440417,120330.0,120320.0,0.34510896]
[1755088487945,0.10540417,120330.0,120320.0,0.34810896]
[1755088491543,0.10540417,120330.0,120320.0,0.65082896]
[1755088492560,0.02268092,120330.0,120320.0,0.65082896]
[1755088492806,0.02268092,120330.0,120320.0,0.51470896]
[1755088493009,0.02268092,120330.0,120320.0,0.65050896]
[1755088493179,0.02268092,120330.0,120320.0,0.67540796]
[1755088493388,0.02168092,120330.0,120320.0,0.67240796]
[1755088493584,0.02068092,120330.0,120320.0,0.66840796]
[1755088493766,0.02168092,120330.0,120320.0,0.67640796]
[1755088494577,0.001,120330.0,120320.0,0.57284796]
[1755088494990,0.001,120330.0,120320.0,0.57268796]
[1755088495190,0.02168092,120330.0,120320.0,0.23788796]
[1755088495425,0.02168092,120330.0,120320.0,0.71348796]
[1755088496576,0.001,120330.0,120320.0,0.71348796]
[1755088496980,0.001,120330.0,120320.0,0.91348796]
[1755088497516,0.02842127,120340.0,120330.0,0.54]
[1755088497517,0.00774035,120340.0,120330.0,0.54]
[1755088497919,0.00774035,120340.0,120330.0,0.67544]
[1755088500043,0.00774035,120340.0,120330.0,0.67844]
[1755088500297,0.00774035,120340.0,120330.0,0.543]
[1755088500444,0.00774035,120340.0,120330.0,0.67836]
[1755088500882,0.00774035,120340.0,120330.0,0.67936]
[1755088501660,0.00774035,120340.0,120330.0,0.982]
[1755088503496,0.00774035,120340.0,120330.0,0.84664]
[1755088503705,0.00774035,120340.0,120330.0,0.9818]
[1755088503902,0.00774035,120340.0,120330.0,0.74312]
[1755088504112,0.00774035,120340.0,120330.0,0.87828]
[1755088506770,0.00774035,120340.0,120330.0,0.67916]
[1755088507524,0.00774035,120340.0,120330.0,0.544]
[1755088507525,0.01096035,120340.0,120330.0,0.544]
[1755088507789,0.01300035,120340.0,120330.0,0.67896]
[1755088507993,0.00774035,120340.0,120330.0,0.67896]
[1755088509901,0.00774035,120340.0,120330.0,0.544]
[1755088510106,0.00774035,120340.0,120330.0,0.67888]
[1755088510316,0.00774035,120340.0,120330.0,0.67884]
[1755088510855,0.00774035,120340.0,120330.0,0.703736]
[1755088511500,0.00774035,120340.0,120330.0,1.006336]
[1755088513032,0.00774035,120340.0,120330.0,0.871496]
[1755088513257,0.00774035,120340.0,120330.0,1.006176]
[1755088516470,0.00774035,120340.0,120330.0,0.767976]
[1755088516668,0.00774035,120340.0,120330.0,0.902456]
[1755088518540,0.00774035,120340.0,120330.0,0.703376]
[1755088519579,0.00774035,120340.0,120330.0,0.568896]
[1755088519779,0.01300035,120340.0,120330.0,0.703096]
[1755088520817,0.01300035,120340.0,120330.0,0.703056]
[1755088521033,0.03368127,120340.0,120330.0,0.368896]
[1755088521248,0.11640452,120340.0,120330.0,0.13808]
[1755088521660,0.11640452,120340.0,120330.0,0.44068]
[1755088523271,0.11640452,120340.0,120330.0,0.44076]
[1755088523680,0.11640452,120340.0,120330.0,0.78076]
[1755088524483,0.11640452,120340.0,120330.0,0.77976]
[1755088524702,0.11640452,120340.0,120330.0,0.77676]
[1755088524900,0.11640452,120340.0,120330.0,0.77876]
[1755088525313,0.11640452,120340.0,120330.0,0.6446]
[1755088525512,0.11640452,120340.0,120330.0,0.77872]
[1755088527381,0.11640452,120340.0,120330.0,0.6752]
[1755088528226,0.11640452,120340.0,120330.0,0.002]
[1755088528437,0.49813657,120340.0,120330.0,0.13588]
[1755088528989,0.49813657,120340.0,120330.0,0.002]
[1755088529199,0.49813657,120340.0,120330.0,0.1358]
[1755088530170,0.11640452,120340.0,120330.0,0.1358]
[1755088531408,0.11640452,120340.0,120330.0,0.43644]
[1755088531805,0.11640452,120340.0,120330.0,0.43744]
[1755088532487,0.11640452,120340.0,120330.0,0.30264]
[1755088532699,0.11740452,120340.0,120330.0,0.30264]
[1755088533265,0.11740452,120340.0,120330.0,0.19912]
[1755088533722,0.11740452,120340.0,120330.0,0.33276]
[1755088535057,0.11740452,120340.0,120300.0,0.23558164]
[1755088535242,0.08272325,120330.0,120300.0,0.2356306]
[1755088535390,0.08587325,120330.0,120310.0,0.13364]
[1755088535602,0.08587325,120330.0,120320.0,0.3336]
[1755088535815,0.08783325,120330.0,120320.0,0.2]
[1755088536056,0.08783325,120330.0,120320.0,0.3336]
[1755088536616,0.08783325,120330.0,120320.0,0.33356]
[1755088537987,0.08783325,120330.0,120320.0,0.33352]
[1755088538125,0.08783325,120330.0,120320.0,0.67352]
[1755088539538,0.08783325,120330.0,120320.0,0.67452]
[1755088541725,0.08783325,120330.0,120320.0,0.97716]
[1755088542871,0.02068092,120330.0,120320.0,0.67408]
[1755088543453,0.02579092,120330.0,120320.0,0.13404]
[1755088543675,0.02068092,120320.0,120310.0,0.34]
[1755088543889,0.02383092,120320.0,120310.0,0.47768]
[1755088544108,0.02579092,120320.0,120310.0,0.47768]
[1755088544323,0.02579092,120320.0,120310.0,0.34]
[1755088544533,0.10851417,120320.0,120310.0,0.47768]
[1755088544752,0.10851417,120320.0,120310.0,0.34]
[1755088544989,0.10851417,120320.0,120300.0,0.34511002]
[1755088544990,0.02068092,120310.0,120300.0,0.34511002]
[1755088545210,0.02579092,120310.0,120300.0,0.48299002]
[1755088545436,0.02579092,120310.0,120300.0,0.48303002]
[1755088545656,0.02379092,120310.0,120300.0,0.48303002]
[1755088546077,0.02379092,120310.0,120300.0,0.68303002]
[1755088546727,0.02379092,120310.0,120300.0,0.54511002]
[1755088546926,0.02279092,120310.0,120300.0,0.68303002]
[1755088547273,0.02279092,120310.0,120300.0,0.54711002]
[1755088547470,0.02279092,120310.0,120300.0,0.68499002]
[1755088547613,0.02279092,120310.0,120300.0,0.68599002]
[1755088548916,0.02083092,120310.0,120300.0,0.68599002]
[1755088549788,0.02083092,120310.0,120300.0,0.54811002]
[1755088550009,0.01768092,120310.0,120300.0,0.68603002]
[1755088551512,0.01768092,120310.0,120300.0,0.98875002]
[1755088553218,0.01768092,120310.0,120300.0,0.85083002]
[1755088553424,0.01768092,120310.0,120300.0,0.98875002]
[1755088554092,0.02279092,120310.0,120300.0,0.88511002]
[1755088554513,0.02279092,120310.0,120300.0,0.74727002]
[1755088554742,0.02279092,120310.0,120300.0,0.68595002]
[1755088556086,0.02279092,120310.0,120300.0,0.68591002]
[1755088557382,0.48724622,120310.0,120300.0,0.00811002]
[1755088557590,0.55409393,120310.0,120300.0,0.14076896]
[1755088557796,0.57900293,120310.0,120300.0,0.00304896]
[1755088557998,0.51215522,120310.0,120300.0,0.14084896]
[1755088558442,0.51215522,120310.0,120300.0,0.13884896]
[1755088559326,0.51215522,120310.0,120300.0,0.13784896]
[1755088559529,0.51215522,120310.0,120300.0,4.896e-05]
[1755088559728,0.51215522,120310.0,120300.0,0.13792896]
[1755088560146,0.51315522,120310.0,120300.0,0.13792896]
[1755088560700,0.13142317,120310.0,120300.0,0.13788896]
[1755088560907,0.51315522,120310.0,120300.0,0.13788896]
[1755088561120,0.51315522,120310.0,120300.0,4.896e-05]
[1755088561399,0.51415522,120310.0,120300.0,0.13788896]
[1755088561606,0.51415522,120310.0,120300.0,0.44060896]
[1755088562450,0.51415522,120310.0,120300.0,0.30276896]
[1755088562713,0.51415522,120310.0,120300.0,0.44056896]
[1755088562926,0.85415522,120310.0,120300.0,0.19916]
[1755088564081,0.85415522,120310.0,120300.0,0.33688]
[1755088564288,0.85415522,120310.0,120300.0,0.19916]
[1755088564465,0.85415522,120310.0,120300.0,0.33676]
[1755088565074,0.85415522,120310.0,120300.0,0.19916]
[1755088565275,0.85415522,120310.0,120300.0,0.3368]
[1755088566896,0.85415522,120310.0,120250.0,0.36491]
[1755088567117,0.4644553,120300.0,120250.0,0.36495899]
[1755088567328,0.0031,120290.0,120250.0,0.42747899]
[1755088567515,0.08582325,120290.0,120250.0,0.42747899]
[1755088568256,0.08582325,120290.0,120260.0,0.1376]
[1755088568699,0.08582325,120290.0,120260.0,0.14767306]
[1755088568886,0.08682325,120290.0,120260.0,0.14767306]
[1755088570287,0.08582325,120290.0,120260.0,0.14767306]
[1755088570542,0.08582325,120290.0,120260.0,0.15067306]
[1755088570745,0.08582325,120290.0,120260.0,0.15367306]
[1755088571536,0.08582325,120290.0,120280.0,0.1992]
[1755088571761,0.08789325,120290.0,120280.0,0.33668]
[1755088572140,0.10557417,120290.0,120280.0,0.33668]
[1755088572553,0.48730622,120290.0,120280.0,0.33668]
[1755088572963,0.48730622,120290.0,120280.0,0.1992]
[1755088573198,0.48730622,120290.0,120280.0,0.33656]
[1755088573402,0.51221922,120290.0,120280.0,0.3366]
[1755088573581,0.51221922,120290.0,120260.0,0.01207306]
[1755088573780,0.39941297,120270.0,120260.0,0.01207306]
[1755088573991,0.48420622,120270.0,120260.0,0.14656192]
[1755088574142,0.48420622,120270.0,120260.0,0.14606791]
[1755088574352,0.48730622,120270.0,120260.0,0.14606791]
[1755088575168,0.10557417,120270.0,120260.0,0.15006791]
[1755088575394,0.10557417,120270.0,120260.0,0.15002791]
[1755088576715,0.10557417,120270.0,120260.0,0.01270791]
[1755088576920,0.10557417,120270.0,120260.0,0.14998791]
[1755088577799,0.10557417,120270.0,120260.0,0.14990791]
[1755088579716,0.10557417,120270.0,120260.0,0.01270791]
[1755088580039,0.10557417,120270.0,120260.0,0.14982791]
[1755088581467,0.10557417,120270.0,120260.0,0.45258791]
[1755088582528,0.10557417,120270.0,120260.0,0.45230791]
[1755088582931,0.10557417,120270.0,120260.0,0.45234791]
[1755088584876,0.10557417,120270.0,120260.0,0.34878791]
[1755088587803,0.51222222,120270.0,120260.0,0.14938791]
[1755088587982,0.13049017,120270.0,120260.0,0.14938791]
[1755088588172,0.51222222,120270.0,120260.0,0.01270791]
[1755088588372,0.51222222,120270.0,120260.0,0.14934791]
[1755088589558,0.51222222,120270.0,120260.0,0.01270791]
[1755088589695,0.51222222,120270.0,120260.0,0.14930791]
[1755088590221,0.51222222,120270.0,120260.0,0.01270791]
[1755088590544,0.51222222,120270.0,120260.0,0.14930791]
[1755088591586,0.51222222,120270.0,120260.0,0.45206791]
[1755088592330,0.51222222,120270.0,120260.0,0.45202791]
[1755088592520,0.51222222,120270.0,120260.0,0.34842791]
[1755088592798,0.51222222,120270.0,120260.0,0.33972]
[1755088593011,0.52769948,120270.0,120260.0,0.33972]
[1755088593140,0.51222222,120270.0,120260.0,0.20324]
[1755088593358,0.52769447,120270.0,120260.0,0.33772]
[1755088593960,0.52769447,120270.0,120260.0,0.33572]
[1755088594461,0.5276904,120270.0,120260.0,0.33572]
[1755088594850,0.5296904,120270.0,120260.0,0.33572]
[1755088595255,0.5296904,120270.0,120260.0,0.13648]
[1755088596692,0.14795835,120270.0,120260.0,0.13648]
[1755088596923,0.14795835,120270.0,120260.0,0.13628]
[1755088597127,0.5296904,120270.0,120260.0,0.13628]
[1755088597920,0.14795835,120270.0,120260.0,0.13628]
[1755088598114,0.5296904,120270.0,120260.0,0.13628]
[1755088598279,0.51422222,120270.0,120260.0,0.13628]
[1755088598479,0.52968215,120270.0,120260.0,0.13628]
[1755088599152,0.51422222,120270.0,120260.0,0.13628]
[1755088599353,0.14794689,120270.0,120260.0,0.14569899]
[1755088599770,0.52967894,120270.0,120260.0,0.14569899]
[1755088599965,0.14794689,120270.0,120260.0,0.14569899]
[1755088600203,0.51422222,120270.0,120260.0,0.14569899]
[1755088600409,0.52967946,120270.0,120260.0,0.14569899]
[1755088600622,0.51422222,120270.0,120260.0,0.14569899]
[1755088600776,0.52967947,120270.0,120260.0,0.14569899]
[1755088601182,0.51422222,120270.0,120260.0,0.14569899]
[1755088601498,0.51422222,120270.0,120260.0,0.44853899]
[1755088604692,0.13249017,120270.0,120260.0,0.44853899]
[1755088605146,0.51422222,120270.0,120260.0,0.44853899]
[1755088606735,0.13249017,120270.0,120260.0,0.44853899]
[1755088607550,0.13249017,120270.0,120260.0,0.34493899]
[1755088607768,0.13249017,120270.0,120260.0,0.14569899]
[1755088610026,0.12732017,120270.0,120260.0,0.14569899]
[1755088610656,0.13025017,120270.0,120260.0,0.14569899]
[1755088611027,0.47648499,120270.0,120260.0,0.14569899]
[1755088611652,0.47648499,120270.0,120260.0,0.44853899]
[1755088612100,0.13235017,120270.0,120260.0,0.44853899]
[1755088612332,0.47648499,120270.0,120260.0,0.44853899]
[1755088613456,0.13235017,120270.0,120260.0,0.44853899]
[1755088613932,0.47648499,120270.0,120260.0,0.44853899]
[1755088615284,0.13235017,120270.0,120260.0,0.44853899]
[1755088615513,0.47648499,120270.0,120260.0,0.44853899]
[1755088617326,0.47648499,120270.0,120260.0,0.34493899]
[1755088617536,0.12732017,120270.0,120260.0,0.34421899]
[1755088617745,0.12732017,120270.0,120260.0,0.14497899]
[1755088617956,0.12732017,120270.0,120260.0,0.00941899]
[1755088618151,0.10240417,120270.0,120260.0,0.14501899]
[1755088618363,0.10240417,120270.0,120260.0,0.1356]
[1755088619400,0.10240417,120270.0,120260.0,0.13576]
[1755088620454,0.10561417,120270.0,120260.0,0.13576]
[1755088620789,0.10772417,120270.0,120260.0,0.13576]
[1755088621658,0.10772417,120270.0,120260.0,0.4386]
[1755088622312,0.10772417,120270.0,120260.0,0.44787233]
[1755088623357,0.10772417,120270.0,120260.0,0.11287233]
[1755088623734,0.10561417,120270.0,120260.0,0.20851233]
[1755088623885,0.10240417,120270.0,120260.0,0.34419233]
[1755088624822,0.10561417,120270.0,120260.0,0.34419233]
[1755088625021,0.10561417,120270.0,120260.0,0.20851233]
[1755088625222,0.10772417,120270.0,120260.0,0.14499233]
[1755088626196,0.49010641,120270.0,120260.0,0.00927233]
[1755088626396,0.49010641,120270.0,120260.0,0.13568]
[1755088627340,0.51502241,120270.0,120260.0,0.13568]
[1755088627893,0.13264017,120270.0,120250.0,4.899e-05]
[1755088628007,0.026916,120270.0,120260.0,0.13564]
[1755088628214,0.01768092,120260.0,120250.0,0.00964942]
[1755088628664,0.01768092,120260.0,120250.0,0.34528942]
[1755088631246,0.01768092,120260.0,120250.0,0.40626942]
[1755088631578,0.01768092,120260.0,120250.0,0.70910942]
[1755088632192,0.01768092,120270.0,120250.0,0.70910942]
[1755088632961,0.024914,120280.0,120270.0,0.2]
[1755088633173,0.10040417,120280.0,120270.0,0.33568]
[1755088634159,0.10340417,120280.0,120270.0,0.33568]